[Event "Budapest One Week IM-A 03-2025"]
[Site "Budapest"]
[Date "2025.03.18"]
[Round "2.2"]
[White "Singh, Siddharth"]
[Black "Krizsany, Laszlo"]
[Result "1/2-1/2"]
[Annotator "RC"]
[ECO "B12"]
[WhiteElo "2239"]
[BlackElo "2287"]
[PlyCount "73"]
[EventDate "2025.03.17"]
[EventType "tourn"]
[EventCountry "HUN"]
[SourceTitle "playchess.com"]
[Source "ChessBase"]
[SourceQuality "1"]
[TimeControl "5400+30"]

1. e4 {[%emt 0:00:02]} c6 {[%emt 0:00:08]} 2. d4 {[%emt 0:00:04]} d5 {[%emt 0:00:05]} 3. e5 {[%emt 0:00:08]} Bf5 {[%emt 0:00:13]} 4. Nf3 {[%emt 0:00:05]} e6 {[%emt 0:00:28]} 5. Be2 {[%emt 0:00:06]} c5 {[%emt 0:03:07]} 6. c3 {[%emt 0:00:07]} Nc6 {[%emt 0:00:42]} 7. O-O {[%emt 0:00:09]} cxd4 {[%emt 0:01:27]} 8. Nxd4 {[%emt 0:00:08]} Nge7 {[%emt 0:02:16]} 9. Bb5 {[%emt 0:00:09]} Bxb1 {[%emt 0:11:37]} 10. Bg5 {[%emt 0:10:57]} Qd7 {[%emt 0:09:20]} 11. Rxb1 {[%emt 0:07:51]} a6 {[%emt 0:14:51]} 12. Bxe7 {[%emt 0:03:49]} Bxe7 {[%emt 0:00:09]} 13. Qa4 {[%emt 0:00:16]} Rc8 {[%emt 0:00:13]} 14. Bxc6 {[%emt 0:04:05]} bxc6 {[%emt 0:00:09]} 15. Nf3 {[%emt 0:10:14]} O-O {[%emt 0:03:02]} 16. c4 {[%emt 0:08:47]} Qb7 {[%emt 0:04:36]} 17. Qc2 {[%emt 0:02:36]} a5 {[%emt 0:02:42]} 18. b3 {[%emt 0:07:01]} Qa6 {[%emt 0:01:50]} 19. c5 {[%emt 0:03:18]} Qa7 {[%emt 0:14:57]} 20. Rbc1 {[%emt 0:02:24]} Rb8 {[%emt 0:03:49]} 21. Nd4 {[%emt 0:01:22]} Rfc8 {[%emt 0:00:13]} 22. a3 {[%emt 0:00:33]} Bf8 {[%emt 0:03:16]} 23. f4 {[%emt 0:02:24]} g6 {[%emt 0:00:12]} 24. g4 {[%emt 0:00:33]} Qc7 {[%emt 0:01:34]} 25. g5 {[%emt 0:07:03]} Qe7 {[%emt 0:07:11]} 26. Qd2 {[%emt 0:03:48]} Qa7 {[%emt 0:02:52]} 27. Qc3 {[%emt 0:00:25]} h6 {[%emt 0:03:17]} 28. h4 {[%emt 0:01:19]} h5 {[%emt 0:00:19]} 29. Qc2 {[%emt 0:00:15]} Kg7 {[%emt 0:00:32]} 30. Kg2 {[%emt 0:00:48]} Be7 {[%emt 0:01:59]} 31. Rf3 {[%emt 0:00:22]} Rc7 {[%emt 0:00:51]} 32. Qc3 {[%emt 0:02:24]} Kg8 {[%emt 0:01:09]} 33. Rg3 {[%emt 0:03:16]} Bf8 {[%emt 0:00:17]} 34. Qc2 {[%emt 0:03:49]} Bg7 {[%emt 0:03:07]} 35. Qc3 {[%emt 0:01:48]} Bf8 {[%emt 0:00:48]} 36. Qc2 {[%emt 0:00:07]} Bg7 {[%emt 0:00:06]} 37. Qc3 {[%emt 0:00:09]} 1/2-1/2

[Event "Budapest One Week IM-A 03-2025"]
[Site "Budapest"]
[Date "2025.03.18"]
[Round "2.3"]
[White "Ratsma, Midas"]
[Black "Nakahara, Kan"]
[Result "1/2-1/2"]
[Annotator "RC"]
[ECO "C45"]
[WhiteElo "2268"]
[BlackElo "2113"]
[PlyCount "67"]
[EventDate "2025.03.17"]
[EventType "tourn"]
[EventCountry "HUN"]
[SourceTitle "playchess.com"]
[Source "ChessBase"]
[SourceQuality "1"]
[TimeControl "5400+30"]

1. e4 {[%emt 0:00:01]} e5 {[%emt 0:00:06]} 2. Nf3 {[%emt 0:00:09]} Nc6 {[%emt 0:00:05]} 3. d4 {[%emt 0:00:05]} exd4 {[%emt 0:00:14]} 4. Nxd4 {[%emt 0:00:07]} Nf6 {[%emt 0:03:07]} 5. Nxc6 {[%emt 0:00:07]} bxc6 {[%emt 0:00:18]} 6. e5 {[%emt 0:00:08]} Nd5 {[%emt 0:02:08]} 7. c4 {[%emt 0:00:33]} Nb6 {[%emt 0:00:29]} 8. Bd3 {[%emt 0:01:01]} Bb4+ {[%emt 0:10:03]} 9. Nc3 {[%emt 0:03:21]} O-O {[%emt 0:05:15]} 10. O-O {[%emt 0:07:12]} Re8 {[%emt 0:03:33]} 11. Re1 {[%emt 0:06:52]} d5 {[%emt 0:14:39]} 12. exd6 {[%emt 0:02:46]} cxd6 {[%emt 0:12:28]} 13. Bg5 {[%emt 0:07:09]} Rxe1+ {[%emt 0:03:29]} 14. Qxe1 {[%emt 0:00:06]} f6 {[%emt 0:01:19]} 15. Qe4 {[%emt 0:07:56]} g6 {[%emt 0:00:44]} 16. Bh4 {[%emt 0:02:31]} Bxc3 {[%emt 0:04:38]} 17. bxc3 {[%emt 0:00:12]} Bf5 {[%emt 0:00:16]} 18. Qf3 {[%emt 0:01:26]} Bxd3 {[%emt 0:00:07]} 19. Qxd3 {[%emt 0:00:10]} Qe7 {[%emt 0:02:48]} 20. f3 {[%emt 0:05:10]} Qe6 {[%emt 0:05:13]} 21. c5 {[%emt 0:20:46]} dxc5 {[%emt 0:02:25]} 22. Re1 {[%emt 0:02:02]} Qxa2 {[%emt 0:04:49]} 23. Bxf6 {[%emt 0:04:25]} Qf7 {[%emt 0:05:35]} 24. Qd6 {[%emt 0:05:23]} Re8 {[%emt 0:03:21]} 25. Re7 {[%emt 0:05:00]} Rxe7 {[%emt 0:01:31]} 26. Bxe7 {[%emt 0:00:05]} Qd5 {[%emt 0:07:03]} 27. Qb8+ {[%emt 0:03:43]} Kf7 {[%emt 0:00:07]} 28. Qf8+ {[%emt 0:00:34]} Ke6 {[%emt 0:00:02]} 29. Qf6+ {[%emt 0:02:01]} Kd7 {[%emt 0:00:01]} 30. Qg7 {[%emt 0:00:54]} Qd1+ {[%emt 0:00:48]} 31. Kf2 {[%emt 0:00:06]} Qd2+ {[%emt 0:00:14]} 32. Kf1 {[%emt 0:01:02]} Qd3+ {[%emt 0:01:07]} 33. Kf2 {[%emt 0:00:27]} Qd2+ {[%emt 0:01:08]} 34. Kf1 {[%emt 0:00:05]} 1/2-1/2

[Event "Budapest One Week IM-A 03-2025"]
[Site "Budapest"]
[Date "2025.03.18"]
[Round "2.4"]
[White "Foldes, Marton Gabor"]
[Black "Tscheuschner, Georg"]
[Result "1-0"]
[Annotator "RC"]
[ECO "B95"]
[WhiteElo "2332"]
[BlackElo "2236"]
[PlyCount "59"]
[EventDate "2025.03.17"]
[EventType "tourn"]
[EventCountry "HUN"]
[SourceTitle "playchess.com"]
[Source "ChessBase"]
[SourceQuality "1"]
[TimeControl "5400+30"]

1. e4 {[%emt 0:00:02]} c5 {[%emt 0:00:08]} 2. Nf3 {[%emt 0:00:06]} d6 {[%emt 0:00:06]} 3. d4 {[%emt 0:00:14]} cxd4 {[%emt 0:00:05]} 4. Nxd4 {[%emt 0:00:05]} Nf6 {[%emt 0:00:05]} 5. Nc3 {[%emt 0:00:05]} a6 {[%emt 0:00:45]} 6. Bg5 {[%emt 0:00:14]} e6 {[%emt 0:00:16]} 7. Qf3 {[%emt 0:00:12]} Nbd7 {[%emt 0:01:48]} 8. O-O-O {[%emt 0:00:21]} Qc7 {[%emt 0:02:15]} 9. Qg3 {[%emt 0:00:13]} b5 {[%emt 0:02:47]} 10. Bxb5 {[%emt 0:03:14]} axb5 {[%emt 0:00:03]} 11. Ndxb5 {[%emt 0:00:10]} Qb7 {[%emt 0:02:59]} 12. Nxd6+ {[%emt 0:35:38]} Bxd6 {[%emt 0:00:08]} 13. Qxd6 {[%emt 0:00:22]} Ra6 {[%emt 0:06:52]} 14. Qg3 {[%emt 0:02:30]} O-O {[%emt 0:22:42]} 15. f3 {[%emt 0:23:31]} e5 {[%emt 0:04:42]} 16. h4 {[%emt 0:02:24]} Rb6 {[%emt 0:13:06]} 17. h5 {[%emt 0:05:38]} Rxb2 {[%emt 0:06:58]} 18. Bh6 {[%emt 0:01:32]} g6 {[%emt 0:01:16]} 19. hxg6 {[%emt 0:00:47]} fxg6 {[%emt 0:00:51]} 20. Bxf8 {[%emt 0:00:19]} Kxf8 {[%emt 0:05:55]} 21. f4 {[%emt 0:17:13]} Nxe4 {[%emt 0:13:03]} 22. Qh4 {[%emt 0:02:50]} Qc7 {[%emt 0:03:09]} 23. Rd3 {[%emt 0:00:19]} Ba6 {[%emt 0:05:50]} 24. Rf3 {[%emt 0:02:08]} Be2 {[%emt 0:02:52]} 25. Re3 {[%emt 0:01:18]} Nxc3 {[%emt 0:01:23]} 26. Rxc3 {[%emt 0:01:29]} Qxc3 {[%emt 0:00:29]} 27. Qd8+ {[%emt 0:00:02]} Kf7 {[%emt 0:00:28]} 28. Rxh7+ {[%emt 0:00:39]} Ke6 {[%emt 0:00:07]} 29. Qxd7+ {[%emt 0:00:07]} Kf6 {[%emt 0:00:07]} 30. Rf7# {[%emt 0:00:18]} 1-0